bitfinex/quotes_BTCUSD_20210402
["timestamp","ask_amount","ask_price","bid_price","bid_amount"]
[1617402085712,0.15521905,58824.0,58820.0,5.79403147]
[1617402085909,0.15521905,58824.0,58820.0,5.75403147]
[1617402086310,0.15521905,58824.0,58820.0,5.79403147]
[1617402086510,0.42384567,58825.0,58820.0,5.79403147]
[1617402086708,0.42384567,58825.0,58820.0,5.75403147]
[1617402086912,0.85,58824.0,58820.0,5.75403147]
[1617402087113,0.07884567,58825.0,58820.0,5.75403147]
[1617402087312,0.15521862,58824.0,58820.0,5.75403147]
[1617402087714,0.254928,58823.0,58820.0,5.75403147]
[1617402088112,0.1552185,58822.0,58820.0,5.75403147]
[1617402088315,0.1552185,58822.0,58820.0,5.75383147]
[1617402088522,0.1552185,58822.0,58821.0,0.04]
[1617402088719,0.1552185,58822.0,58821.0,0.46159]
[1617402088919,0.41011871,58829.0,58823.0,0.006]
[1617402089118,1.25511871,58829.0,58823.0,0.006]
[1617402089320,0.387028,58825.0,58823.0,0.006]
[1617402089518,1.15021675,58824.0,58821.0,0.46159]
[1617402089720,0.15521696,58823.0,58821.0,0.46159]
[1617402090141,0.15521676,58828.0,58821.0,0.46159]
[1617402090541,0.91,58827.0,58821.0,0.46159]
[1617402090742,0.15521652,58826.0,58821.0,0.46159]
[1617402091346,0.15521652,58826.0,58821.0,0.42159]
[1617402091745,0.254915,58825.0,58821.0,0.42159]
[1617402092145,1.15509736,58824.0,58821.0,0.42159]
[1617402092348,0.15509736,58824.0,58821.0,0.42159]
[1617402092548,0.15509688,58823.0,58821.0,0.42159]
[1617402092764,0.15509643,58824.0,58822.0,0.04]
[1617402092963,0.42009571,58823.0,58822.0,0.04]
[1617402093164,0.265,58823.0,58822.0,0.04]
[1617402093365,0.15509501,58823.0,58822.0,0.04]
[1617402093767,0.15509468,58824.0,58822.0,0.04]
[1617402095788,0.15509468,58824.0,58821.0,0.04]
[1617402096187,0.16,58823.0,58820.0,5.75383147]
[1617402096588,0.15507635,58822.0,58820.0,5.75383147]
[1617402099656,0.16,58823.0,58820.0,5.75383147]
[1617402100354,0.16,58823.0,58821.0,10.39994374]
[1617402101756,0.16,58823.0,58821.0,10.0]
[1617402103159,0.414924,58823.0,58821.0,10.0]
[1617402103970,0.464924,58823.0,58821.0,10.0]
[1617402104572,0.2755294,58826.0,58825.0,5.13373864]
[1617402104776,1.2305294,58826.0,58825.0,5.13373864]
[1617402105173,1.56989538,58826.0,58825.0,5.13373864]
[1617402106203,1.34436598,58826.0,58825.0,5.13373864]
[1617402106402,1.005,58826.0,58825.0,5.13373864]
[1617402107003,1.34493,58826.0,58825.0,5.13373864]
[1617402107404,1.67929482,58826.0,58825.0,5.13373864]
[1617402108612,1.33993,58826.0,58825.0,5.13373864]
[1617402111441,1.67930771,58826.0,58825.0,5.13373864]
[1617402111641,1.53430771,58826.0,58825.0,5.13373864]
[1617402113472,1.24437771,58826.0,58825.0,5.13373864]
[1617402113672,0.855,58826.0,58825.0,5.13373864]
[1617402114476,0.06797419,58827.0,58825.0,5.13373864]
[1617402114876,0.06797419,58827.0,58826.0,0.18597744]
[1617402115077,0.06797419,58827.0,58826.0,0.53087744]
[1617402115475,0.06797419,58827.0,58826.0,0.93082118]
[1617402115675,0.06797419,58827.0,58826.0,0.53087744]
[1617402115880,0.06797419,58827.0,58826.0,0.93082118]
[1617402116277,0.06797419,58827.0,58826.0,1.06582118]
[1617402117296,4.86953555,58830.0,58826.0,1.06582118]
[1617402117696,4.86953555,58830.0,58827.0,0.92994374]
[1617402118099,4.86953555,58830.0,58828.0,0.58592118]
[1617402118295,4.86953555,58830.0,58829.0,0.39994374]
[1617402118497,4.86953555,58830.0,58829.0,0.53]
[1617402118696,4.86953555,58830.0,58829.0,0.92994374]
[1617402118896,4.86953555,58830.0,58829.0,0.53]
[1617402121947,4.96953555,58830.0,58826.0,0.74884374]
[1617402122147,0.15415675,58829.0,58826.0,0.74884374]
[1617402122545,0.15415675,58829.0,58826.0,0.74484374]
[1617402122747,0.775,58828.0,58826.0,0.74484374]
[1617402124798,0.1,58827.0,58826.0,0.74484374]
[1617402125201,0.402284,58832.0,58830.0,0.16420309]
[1617402125602,0.387028,58831.0,58830.0,0.16420309]
[1617402126604,0.44807204,58830.0,58828.0,0.006]
[1617402126805,0.387028,58829.0,58823.0,0.39994374]
[1617402127005,0.44807204,58830.0,58824.0,0.92994374]
[1617402127205,0.44807204,58830.0,58825.0,0.18597744]
[1617402127603,0.44807204,58830.0,58824.0,0.92994374]
[1617402127803,0.44807204,58830.0,58824.0,1.01994374]
[1617402128004,0.44807204,58830.0,58825.0,0.0044]
[1617402128232,0.44807204,58830.0,58826.0,0.92994374]
[1617402128434,0.44807204,58830.0,58826.0,0.53]
[1617402128639,0.44807204,58830.0,58827.0,0.53]
[1617402128835,0.44807204,58830.0,58827.0,0.39994374]
[1617402129036,0.44807204,58830.0,58825.0,0.0044]
[1617402129236,0.44807204,58830.0,58827.0,0.32197]
[1617402129432,0.44807204,58830.0,58828.0,1.47417982]
[1617402129631,0.44807204,58830.0,58829.0,0.31]
[1617402130233,0.44807204,58830.0,58828.0,1.87412356]
[1617402130435,0.44807204,58830.0,58827.0,0.32197]
[1617402134052,0.44807204,58830.0,58827.0,0.50794744]
[1617402134652,0.44807204,58830.0,58827.0,0.32197]
[1617402134874,0.44807204,58830.0,58825.0,0.19037744]
[1617402135274,0.44307204,58830.0,58825.0,0.19037744]
[1617402139299,0.44307204,58830.0,58825.0,0.0044]
[1617402139897,0.44307204,58830.0,58825.0,0.19037744]
[1617402140321,0.43807204,58830.0,58825.0,0.0044]
[1617402141319,0.43807204,58830.0,58825.0,0.19037744]
[1617402141520,0.42420366,58830.0,58825.0,0.56083744]
[1617402141720,0.42420366,58830.0,58826.0,0.39994374]
[1617402141923,0.40920366,58830.0,58826.0,0.39994374]
[1617402142320,0.40920366,58830.0,58827.0,0.18597744]
[1617402143149,0.40920366,58830.0,58827.0,0.39994374]
[1617402143359,0.40920366,58830.0,58827.0,0.18597744]
[1617402143762,0.40920366,58830.0,58827.0,0.58592118]
[1617402143959,0.40920366,58830.0,58828.0,0.39994374]
[1617402144167,0.40920366,58830.0,58826.0,0.39994374]
[1617402145161,0.40920366,58830.0,58827.0,0.39994374]
[1617402145393,0.40920366,58830.0,58825.0,0.0044]
[1617402147593,0.40920366,58830.0,58825.0,0.05522849]
[1617402148003,0.40920366,58830.0,58825.0,0.0044]
[1617402148207,0.165,58827.0,58824.0,0.65480374]
[1617402148409,0.135,58826.0,58821.0,10.0]
[1617402148606,0.135,58826.0,58821.0,10.39994374]
[1617402149405,0.135,58826.0,58821.0,10.40394374]
[1617402149606,0.14,58825.0,58821.0,10.40394374]
[1617402150206,0.25788544,58829.0,58821.0,10.40394374]
[1617402150848,0.2183563,58828.0,58821.0,10.39994374]
[1617402151250,0.32135074,58828.0,58821.0,10.39994374]
[1617402151454,0.17,58827.0,58821.0,10.39994374]
[1617402151653,0.22,58827.0,58821.0,10.0]
[1617402151849,0.32,58826.0,58821.0,10.39994374]
[1617402152051,0.32,58826.0,58821.0,10.0]
[1617402152252,0.254918,58824.0,58821.0,10.0]
[1617402153257,0.254918,58824.0,58821.0,10.39994374]
[1617402153458,0.254918,58824.0,58821.0,10.0]
[1617402153658,0.254918,58824.0,58821.0,10.39994374]
[1617402154059,0.254918,58824.0,58821.0,10.0]
[1617402154460,0.254918,58824.0,58821.0,10.39994374]
[1617402155974,0.254918,58824.0,58821.0,10.45081142]
[1617402156979,0.254918,58824.0,58821.0,10.05086768]
[1617402157385,0.05,58828.0,58822.0,0.30141726]
[1617402157582,0.41219774,58830.0,58823.0,0.0052]
[1617402157783,0.40740366,58830.0,58823.0,0.0052]
[1617402158435,0.40740366,58830.0,58823.0,0.260077]
[1617402162431,0.41039728,58830.0,58823.0,0.260077]
[1617402162831,0.40740366,58830.0,58824.0,0.92994374]
[1617402163037,0.40740366,58830.0,58827.0,0.254862]
[1617402167486,0.40740366,58830.0,58823.0,1.30773116]
[1617402168081,0.41039663,58830.0,58823.0,1.30773116]
[1617402168904,0.41039663,58830.0,58823.0,1.35897477]
[1617402169105,0.41039663,58830.0,58823.0,1.30773116]
[1617402171308,0.40251484,58830.0,58823.0,1.30773116]
[1617402174552,0.39952187,58830.0,58823.0,1.30773116]
[1617402174953,0.145,58829.0,58823.0,1.30773116]
[1617402175153,0.145,58829.0,58824.0,0.005]
[1617402175359,0.145,58829.0,58823.0,1.30773116]
[1617402175558,0.145,58829.0,58823.0,1.7076749]
[1617402175753,0.145,58829.0,58823.0,1.30773116]
[1617402176555,0.145,58829.0,58823.0,1.7076749]
[1617402176752,0.145,58829.0,58823.0,1.30773116]
[1617402177971,0.145,58829.0,58823.0,1.7076749]
[1617402178172,0.15,58828.0,58823.0,1.7076749]
[1617402178573,0.15,58828.0,58823.0,1.30773116]
[1617402181703,0.40251394,58830.0,58823.0,1.30773116]
[1617402182121,0.59287254,58830.0,58823.0,1.30773116]
[1617402182323,0.59287254,58830.0,58822.0,0.004]
[1617402182522,0.59287254,58830.0,58820.0,0.0054]
[1617402182722,0.40251394,58830.0,58820.0,0.0054]
[1617402182922,0.00299315,58829.0,58820.0,0.0054]
[1617402183524,0.14,58828.0,58820.0,0.0054]
[1617402183723,0.002,58827.0,58818.0,0.0046]
[1617402183925,0.15,58826.0,58818.0,0.0046]
[1617402184327,0.14,58825.0,58818.0,0.0046]
[1617402184943,0.14,58825.0,58816.0,10.40474374]
[1617402185142,0.14,58825.0,58816.0,10.65964674]
[1617402186745,0.19,58825.0,58816.0,10.65484674]
[1617402186945,0.24814696,58824.0,58817.0,0.19117744]
[1617402187147,0.24814696,58824.0,58817.0,0.40514374]
[1617402187389,0.24814696,58824.0,58817.0,0.0052]
[1617402187595,0.14,58825.0,58817.0,0.0052]
[1617402187791,0.05,58825.0,58816.0,10.39994374]
[1617402187995,0.05,58826.0,58816.0,10.39994374]
[1617402188437,0.00499402,58827.0,58816.0,10.39994374]
[1617402188636,0.31,58826.0,58816.0,10.39994374]
[1617402188835,0.1,58825.0,58816.0,10.39994374]
[1617402189048,0.254929,58823.0,58816.0,10.39994374]
[1617402189444,0.30141726,58822.0,58816.0,10.0]
[1617402189642,0.18,58821.0,58816.0,10.0]
[1617402189839,0.33,58821.0,58816.0,10.0]
[1617402190238,0.33,58821.0,58816.0,10.39994374]
[1617402190438,0.33,58821.0,58816.0,10.0]
[1617402190642,0.254943,58819.0,58816.0,10.0]
[1617402191037,0.404943,58819.0,58816.0,10.0]
[1617402191242,0.255,58818.0,58816.0,10.0]
[1617402191441,0.254943,58819.0,58816.0,10.0]
[1617402193439,0.404943,58819.0,58816.0,10.0]
[1617402193642,0.354943,58819.0,58816.0,10.0]
[1617402193841,0.155,58818.0,58816.0,10.0]
[1617402197665,0.155,58818.0,58817.0,0.18597744]
[1617402197878,0.00299474,58825.0,58816.0,0.004]
[1617402198075,0.00299229,58827.0,58819.0,0.004]
[1617402198274,0.0619457,58833.0,58820.0,0.18597744]
[1617402198275,0.00299226,58828.0,58820.0,0.18597744]
[1617402198472,0.00299226,58828.0,58819.0,0.004]
[1617402198674,0.387028,58827.0,58822.0,0.006]
[1617402199075,0.387028,58825.0,58823.0,0.18597744]
[1617402199272,0.387028,58825.0,58822.0,0.004]
[1617402199472,0.145,58824.0,58823.0,0.18597744]
[1617402199674,0.145,58824.0,58820.0,0.18597744]
[1617402199872,0.00299221,58829.0,58820.0,0.18597744]
[1617402200272,0.387028,58828.0,58820.0,0.18597744]
[1617402200900,0.387028,58828.0,58827.0,0.026]
[1617402201303,0.577028,58828.0,58827.0,0.026]
[1617402208375,0.577028,58828.0,58827.0,0.07699007]
[1617402208575,0.577028,58828.0,58827.0,0.026]
[1617402209976,0.577028,58828.0,58827.0,0.07727074]
[1617402210376,0.577028,58828.0,58827.0,0.026]
[1617402213627,0.577028,58828.0,58827.0,0.02418594]
[1617402218501,0.577028,58828.0,58827.0,0.45130594]
[1617402222117,0.577028,58828.0,58827.0,0.5024389]
[1617402222318,0.577028,58828.0,58827.0,0.45130594]
[1617402223718,0.577028,58828.0,58827.0,0.02418594]
[1617402225934,0.572028,58828.0,58827.0,0.02418594]
[1617402228559,0.572028,58828.0,58827.0,0.07597754]
[1617402229158,0.572028,58828.0,58827.0,0.02418594]
[1617402234045,0.572028,58828.0,58827.0,0.08198594]
[1617402235744,0.522028,58828.0,58827.0,0.08198594]
[1617402236347,0.332028,58828.0,58827.0,0.08198594]
[1617402239257,0.537028,58828.0,58827.0,0.08198594]
[1617402239883,0.791919,58828.0,58827.0,0.08198594]
[1617402240288,0.537028,58828.0,58827.0,0.08198594]
[1617402240491,0.537028,58828.0,58827.0,1.51219094]
[1617402240692,0.39952187,58830.0,58827.0,8.48210368]
[1617402240889,0.39952187,58830.0,58829.0,9.7152357]
[1617402241088,0.39952187,58830.0,58829.0,11.10019444]
[1617402241488,0.39952187,58830.0,58829.0,11.32978174]
[1617402241888,0.39952187,58830.0,58829.0,10.51376674]
[1617402242089,0.39952187,58830.0,58829.0,2.33878174]
[1617402242501,0.39952187,58830.0,58829.0,5.78374674]
[1617402242701,0.39952187,58830.0,58829.0,1.35376674]
[1617402244104,0.40061541,58830.0,58829.0,1.35376674]
[1617402245125,0.40061541,58830.0,58829.0,0.953823]
[1617402245523,0.40061541,58830.0,58829.0,0.423823]
[1617402245925,0.40061541,58830.0,58829.0,0.82376674]
[1617402246125,0.40061541,58830.0,58829.0,0.56894374]
[1617402246325,0.40061541,58830.0,58828.0,0.0085]
[1617402246524,0.40061541,58830.0,58829.0,0.14]
[1617402248151,0.40061541,58830.0,58828.0,0.0085]
[1617402248602,0.39061541,58830.0,58828.0,0.0085]
[1617402250007,0.39061541,58830.0,58828.0,0.993515]
[1617402250425,0.39061541,58830.0,58829.0,0.195]
[1617402254140,0.39061541,58830.0,58829.0,1.79892274]
[1617402254534,0.39061541,58830.0,58829.0,4.48892274]
[1617402254737,0.39061541,58830.0,58829.0,1.79892274]
[1617402254937,0.39061541,58830.0,58829.0,0.81390774]
[1617402255337,0.39061541,58830.0,58829.0,0.75894374]
[1617402255752,0.39061541,58830.0,58829.0,0.59494374]
[1617402256753,0.39061541,58830.0,58829.0,0.83588518]
[1617402257355,0.39061541,58830.0,58829.0,2.94588518]
[1617402257752,0.0021,58833.0,58829.0,0.83588518]
[1617402257952,0.0021,58833.0,58831.0,0.254812]
[1617402258153,0.0021,58833.0,58832.0,0.56597744]
[1617402258385,0.0021,58833.0,58832.0,0.38]
[1617402259386,0.0021,58833.0,58828.0,0.0085]
[1617402259587,0.00187199,58833.0,58828.0,0.0085]
[1617402259993,0.002,58839.0,58828.0,0.0085]
[1617402260189,0.002,58839.0,58828.0,0.01150781]
[1617402260390,0.002,58839.0,58830.0,0.006]
[1617402260590,0.002,58841.0,58830.0,0.006]
[1617402262407,0.002,58841.0,58830.0,0.05755899]
[1617402262612,0.1709611,58840.0,58830.0,0.05755899]
[1617402264062,0.1709611,58840.0,58830.0,0.05733937]
[1617402264874,0.0209611,58840.0,58831.0,0.18597744]
[1617402265066,0.0209611,58840.0,58831.0,0.54736744]
[1617402265269,0.02296095,58841.0,58831.0,0.94731118]
[1617402265667,0.02296095,58841.0,58831.0,0.76133374]
[1617402266283,0.02296095,58841.0,58832.0,0.16]
[1617402266485,0.02096095,58840.0,58832.0,0.16]
[1617402267281,0.02096095,58840.0,58829.0,0.00300781]
[1617402267681,0.02096095,58840.0,58828.0,0.71481349]
[1617402267888,0.02096095,58840.0,58829.0,0.39994374]
[1617402268082,0.02096095,58840.0,58828.0,0.31486975]
[1617402268482,0.02096095,58840.0,58828.0,0.263334]
[1617402268683,0.02096095,58840.0,58829.0,0.18597744]
[1617402269087,0.27580195,58840.0,58828.0,0.263334]
[1617402269286,0.27580195,58840.0,58828.0,0.26634181]
[1617402269486,0.27580195,58840.0,58828.0,0.263334]
[1617402270491,0.27580195,58840.0,58829.0,0.155]
[1617402270689,0.27580195,58840.0,58829.0,0.55494374]
[1617402271713,0.21800195,58840.0,58829.0,0.55494374]
[1617402272313,0.21800195,58840.0,58830.0,0.0052]
[1617402273318,0.387022,58839.0,58838.0,0.28644301]
[1617402273518,0.387022,58839.0,58838.0,0.33687762]
[1617402273722,0.557022,58839.0,58838.0,0.33687762]
[1617402273919,1.20148384,58839.0,58838.0,0.28644301]
[1617402279199,1.20148384,58839.0,58838.0,0.45044301]
[1617402279433,1.20148384,58839.0,58838.0,0.28644301]
[1617402280832,1.20148384,58839.0,58831.0,0.02653309]
[1617402281037,0.39115874,58838.0,58831.0,0.02653309]
[1617402281234,0.265,58838.0,58831.0,0.02653309]
[1617402282632,0.205,58837.0,58831.0,0.02653309]
[1617402289174,0.205,58837.0,58831.0,0.07712168]
[1617402289374,0.17,58836.0,58831.0,0.07712168]
[1617402289574,0.17,58836.0,58831.0,0.02653309]
[1617402293428,0.16,58835.0,58831.0,0.02653309]
[1617402294035,0.387022,58834.0,58831.0,0.02653309]
[1617402294631,0.16,58835.0,58831.0,0.02653309]
[1617402296673,0.165,58834.0,58831.0,0.02653309]
[1617402296871,0.387022,58833.0,58831.0,0.02653309]
[1617402297072,0.387022,58832.0,58831.0,0.02653309]
[1617402300183,0.29783746,58838.0,58831.0,0.02653309]
[1617402300606,0.19,58837.0,58831.0,0.02653309]
[1617402301608,0.387022,58836.0,58831.0,0.02653309]
[1617402302209,0.607022,58835.0,58834.0,0.0085]
[1617402305431,0.7256682,58912.0,58850.0,16.80220582]
[1617402305656,0.275427,58851.0,58850.0,16.80220582]
[1617402305858,0.325427,58851.0,58850.0,16.80220582]
[1617402306054,0.485427,58851.0,58850.0,16.80220582]
[1617402306454,0.825232,58851.0,58850.0,16.80220582]
[1617402307253,0.925232,58851.0,58850.0,16.80220582]
[1617402308054,1.2615957,58851.0,58850.0,16.80220582]
[1617402310092,1.1141957,58851.0,58850.0,16.80220582]
[1617402310693,1.6265857,58851.0,58850.0,26.06768628]
[1617402310935,1.6265857,58851.0,58850.0,25.89774907]
[1617402311132,1.6265857,58851.0,58850.0,25.72781207]
[1617402311534,1.78134538,58851.0,58850.0,25.55786707]
[1617402311732,2.13651062,58851.0,58850.0,25.55786707]
[1617402311931,2.13651062,58851.0,58850.0,25.38792207]
[1617402312131,3.09823103,58851.0,58850.0,25.21797707]
[1617402312936,2.93847135,58851.0,58850.0,25.21797707]
[1617402313535,3.93847135,58851.0,58850.0,25.21797707]
[1617402313735,4.23847135,58851.0,58850.0,25.21797707]
[1617402314737,4.25620412,58851.0,58850.0,25.21797707]
[1617402317764,4.25620412,58851.0,58850.0,25.16667707]
[1617402317968,4.60620412,58851.0,58850.0,24.44028603]
[1617402318173,4.60620412,58851.0,58850.0,24.18530603]
[1617402318174,5.75710457,58851.0,58850.0,24.18530603]
[1617402318365,6.29910457,58851.0,58850.0,23.5053617]
[1617402318569,6.54910457,58851.0,58850.0,22.9954037]
[1617402318989,6.54910457,58851.0,58850.0,22.4854457]
[1617402319188,6.94812186,58851.0,58850.0,22.4854457]
[1617402320193,9.06919884,58851.0,58850.0,22.4854457]
[1617402320992,8.69725489,58851.0,58850.0,22.4854457]
[1617402321412,8.69725489,58851.0,58850.0,22.47756764]
[1617402322415,8.67952212,58851.0,58850.0,17.47756764]
[1617402322613,11.56344275,58851.0,58850.0,17.47756764]
[1617402323417,11.56344275,58851.0,58850.0,17.45545869]
[1617402324054,11.57231158,58851.0,58850.0,17.45545869]
[1617402324458,11.57231158,58851.0,58850.0,17.36514002]
[1617402324857,11.56278137,58851.0,58850.0,17.36514002]
[1617402326260,10.96278137,58851.0,58850.0,17.36514002]
[1617402326669,10.46278137,58851.0,58850.0,17.36514002]
[1617402326869,10.96278137,58851.0,58850.0,17.36514002]
[1617402327869,8.07886074,58851.0,58850.0,17.36514002]
[1617402328470,8.69659558,58851.0,58850.0,17.36514002]
[1617402330697,8.69659558,58851.0,58850.0,17.36014002]
[1617402332516,6.67016858,58851.0,58850.0,17.36014002]
[1617402332717,6.39528822,58851.0,58850.0,17.36014002]
[1617402333117,6.6612943,58851.0,58850.0,17.36014002]
[1617402333318,6.6562943,58851.0,58850.0,17.36014002]
[1617402333919,7.0562943,58851.0,58850.0,17.36014002]
[1617402334119,7.2962943,58851.0,58850.0,17.36014002]
[1617402334318,6.94112906,58851.0,58850.0,17.36014002]
[1617402334945,7.57997825,58851.0,58850.0,17.36014002]
[1617402335747,7.8996737,58851.0,58850.0,17.36014002]
[1617402336549,7.74677325,58851.0,58850.0,17.36014002]
[1617402338174,7.72903841,58851.0,58850.0,17.36014002]
[1617402341598,7.67123841,58851.0,58850.0,17.36014002]
[1617402343023,7.17603841,58851.0,58850.0,17.36014002]
[1617402343424,7.17603841,58851.0,58850.0,17.36824102]
[1617402343825,7.19377205,58851.0,58850.0,17.36824102]
[1617402345849,7.22877205,58851.0,58850.0,17.36824102]
[1617402346454,6.96276597,58851.0,58850.0,17.36824102]
[1617402346850,7.22876544,58851.0,58850.0,17.36824102]
[1617402347051,7.72876544,58851.0,58850.0,17.36824102]
[1617402349274,7.3736002,58851.0,58850.0,17.36824102]
[1617402349876,7.72876544,58851.0,58850.0,17.36824102]
[1617402351102,7.72376544,58851.0,58850.0,17.36824102]
[1617402351304,7.45776597,58851.0,58850.0,17.36824102]
[1617402351504,5.33668899,58851.0,58850.0,17.36824102]
[1617402351706,5.37215618,58851.0,58850.0,17.36824102]
[1617402352103,5.37215618,58851.0,58850.0,17.86824102]
[1617402352303,5.36715618,58851.0,58850.0,17.86824102]
[1617402357147,5.01199094,58851.0,58850.0,17.86824102]
[1617402357751,4.82578435,58851.0,58850.0,17.86824102]
[1617402357951,4.25358435,58851.0,58850.0,17.86824102]
[1617402359173,4.30358435,58851.0,58850.0,17.86824102]
[1617402359374,4.89358435,58851.0,58850.0,17.86824102]
[1617402359583,3.34358435,58851.0,58850.0,17.86824102]
[1617402359775,2.99019435,58851.0,58850.0,17.86824102]
[1617402359975,2.90041789,58851.0,58850.0,17.86824102]
[1617402360174,2.51041789,58851.0,58850.0,17.86824102]
[1617402361005,2.01041789,58851.0,58850.0,17.86824102]
[1617402361404,2.06041789,58851.0,58850.0,17.86824102]
[1617402361604,2.40041789,58851.0,58850.0,17.85072571]
[1617402361803,2.56016919,58851.0,58850.0,17.85072571]
[1617402362604,2.56016919,58851.0,58850.0,12.85072571]
[1617402366048,2.64994565,58851.0,58850.0,12.85072571]
[1617402366650,2.24019435,58851.0,58850.0,12.85072571]
[1617402366850,2.24019435,58851.0,58850.0,12.84622335]
[1617402369287,1.60019435,58851.0,58850.0,12.88622335]
[1617402369489,1.26013524,58851.0,58850.0,13.87123835]
[1617402369688,0.76402565,58851.0,58850.0,14.27118209]
[1617402370093,0.67424919,58851.0,58850.0,13.28616709]
[1617402370490,0.84924919,58851.0,58850.0,13.28616709]
[1617402371325,0.67424919,58851.0,58850.0,13.28616709]
[1617402371530,0.67424919,58851.0,58850.0,12.88622335]
[1617402371725,0.72424919,58851.0,58850.0,12.88622335]
[1617402372324,0.89424919,58851.0,58850.0,12.88622335]
[1617402372926,0.89424919,58851.0,58850.0,12.84622335]
[1617402373127,0.99424919,58851.0,58850.0,12.88622335]
[1617402373526,0.98924919,58851.0,58850.0,12.88622335]
[1617402374127,1.24412719,58851.0,58850.0,12.88622335]
[1617402374729,1.74412719,58851.0,58850.0,12.88622335]
[1617402374928,1.98412719,58851.0,58850.0,12.88622335]
[1617402375130,2.3194221,58851.0,58850.0,12.88622335]
[1617402380678,2.3194221,58851.0,58850.0,7.88622335]
[1617402381077,2.3194221,58851.0,58850.0,7.84622335]
[1617402381283,2.5694221,58851.0,58850.0,7.84622335]
[1617402381479,1.72213163,58851.0,58850.0,7.84622335]
[1617402381716,1.53213163,58851.0,58850.0,7.84622335]
[1617402381917,1.19683672,58851.0,58850.0,7.84622335]
[1617402382115,1.61695886,58851.0,58850.0,7.84622335]
[1617402382315,1.28661318,58851.0,58850.0,7.84622335]
[1617402382515,1.61695803,58851.0,58850.0,7.84622335]
[1617402382916,1.28661318,58851.0,58850.0,7.84622335]
[1617402383116,2.00397729,58851.0,58850.0,7.84622335]
[1617402383514,1.61695729,58851.0,58850.0,7.84622335]
[1617402383714,1.28661318,58851.0,58850.0,7.84622335]
[1617402383914,2.00396264,58851.0,58850.0,7.84622335]
[1617402384128,1.91418618,58851.0,58850.0,7.84622335]
[1617402384348,1.52716618,58851.0,58850.0,7.84622335]
[1617402384536,1.82385672,58851.0,58850.0,7.84622335]
[1617402384737,1.19683672,58851.0,58850.0,7.84622335]
[1617402384937,1.91472799,58851.0,58850.0,7.84622335]
[1617402385137,1.28661318,58851.0,58850.0,7.84622335]
[1617402385937,1.67363318,58851.0,58850.0,7.84622335]
[1617402386138,1.28661318,58851.0,58850.0,7.84622335]
[1617402387147,1.67363318,58851.0,58850.0,7.84622335]
[1617402387348,1.28661318,58851.0,58850.0,7.84622335]
[1617402387548,2.00495055,58851.0,58850.0,7.84622335]
[1617402387747,1.28661318,58851.0,58850.0,7.84622335]
[1617402387948,2.00495055,58851.0,58850.0,7.84622335]
[1617402388148,1.17363318,58851.0,58850.0,7.84622335]
[1617402388352,1.41363318,58851.0,58850.0,7.84622335]
[1617402388551,1.02661318,58851.0,58850.0,7.84622335]
[1617402388749,1.41363318,58851.0,58850.0,7.84622335]
[1617402388948,1.02661318,58851.0,58850.0,7.84622335]
[1617402389585,3.90769016,58851.0,58850.0,7.84622335]
[1617402389788,4.47900878,58851.0,58850.0,7.84622335]
[1617402389987,4.69053337,58851.0,58850.0,7.84622335]
[1617402390184,5.05667687,58851.0,58850.0,7.84622335]
[1617402390385,5.35867687,58851.0,58850.0,7.84622335]
[1617402390784,5.35367687,58851.0,58850.0,7.84622335]
[1617402391987,4.35367687,58851.0,58850.0,7.84622335]
[1617402392204,5.23869687,58851.0,58850.0,7.84622335]
[1617402392604,4.72717228,58851.0,58850.0,7.84622335]
[1617402393003,4.88691271,58851.0,58850.0,7.84622335]
[1617402393806,4.90464592,58851.0,58850.0,7.84622335]
[1617402394406,4.74490549,58851.0,58850.0,7.84622335]
[1617402394822,4.90464369,58851.0,58850.0,7.84622335]
[1617402395325,4.74490549,58851.0,58850.0,7.84622335]
[1617402396424,4.23990549,58851.0,58850.0,7.84622335]
[1617402398882,3.87376199,58851.0,58850.0,7.84622335]
[1617402399972,3.87376199,58851.0,58850.0,7.84642375]
[1617402400379,4.03344659,58851.0,58850.0,7.84642375]
[1617402400578,4.39949549,58851.0,58850.0,7.84642375]
[1617402400779,4.89949549,58851.0,58850.0,7.84642375]
[1617402401280,4.73981089,58851.0,58850.0,7.84642375]
[1617402401485,2.23873391,58851.0,58850.0,7.84642375]
[1617402401684,1.5791027,58851.0,58850.0,9.55143875]
[1617402401883,0.5380538,58851.0,58850.0,9.94638249]
[1617402402082,0.11695872,58851.0,58850.0,9.95098249]
[1617402402904,0.26684693,58851.0,58850.0,9.95098249]
[1617402403105,0.11695872,58851.0,58850.0,9.95098249]
[1617402403304,0.2668546,58851.0,58850.0,9.95098249]
[1617402404904,0.2668546,58851.0,58850.0,9.94638249]
[1617402406538,0.2668546,58851.0,58850.0,8.96136749]
[1617402407338,0.2668546,58851.0,58850.0,9.94638249]
[1617402407537,0.2668546,58851.0,58850.0,8.96136749]
[1617402409563,0.2668546,58851.0,58850.0,9.01136749]
[1617402409961,0.2668546,58851.0,58850.0,9.99638249]
[1617402410362,0.2668546,58851.0,58850.0,8.92136749]
[1617402411381,0.2668546,58851.0,58850.0,7.84642375]
[1617402411580,0.2668546,58851.0,58850.0,7.88642375]
[1617402414423,0.11994389,58851.0,58850.0,7.88642375]
[1617402415023,0.11195872,58851.0,58850.0,8.08142375]
[1617402415223,0.11494388,58851.0,58850.0,8.08142375]
[1617402415622,0.11494388,58851.0,58850.0,9.06643875]
[1617402416232,0.11494388,58851.0,58850.0,8.08142375]
[1617402417031,0.11494388,58851.0,58850.0,9.06643875]
[1617402417431,0.11494388,58851.0,58850.0,8.08142375]
[1617402417632,0.10994388,58851.0,58850.0,8.08142375]
[1617402418233,0.10695872,58851.0,58850.0,8.08142375]
[1617402418846,0.25698349,58851.0,58850.0,8.08142375]
[1617402419445,0.10994605,58851.0,58850.0,8.08142375]
[1617402420046,0.00994605,58851.0,58850.0,8.08142375]
[1617402420248,0.00298733,58851.0,58850.0,8.08142375]
[1617402420850,0.00298733,58851.0,58850.0,8.04142375]
[1617402421050,0.00298733,58851.0,58850.0,7.84642375]
[1617402421269,0.0006,58852.0,58850.0,8.24636749]
[1617402421469,0.0006,58852.0,58850.0,7.84642375]
[1617402421872,0.254875,58851.0,58850.0,7.84642375]
[1617402422070,0.39958482,58851.0,58850.0,7.84642375]
[1617402422269,0.59958482,58851.0,58850.0,7.84642375]
[1617402422471,0.69958482,58851.0,58850.0,7.84642375]
[1617402423074,0.78936128,58851.0,58850.0,7.84642375]
[1617402424087,0.78936128,58851.0,58850.0,7.84622375]
[1617402428320,1.42634128,58851.0,58850.0,7.84622375]
[1617402428720,3.9324934,58851.0,58850.0,7.84622375]